fUSD/lending_fUSD_20250609
["ID","MTS","AMOUNT","RATE_DAILY","PERIOD"]
[365160903,1749505850452,-151.0,0.00019342,2]
[365160904,1749505850462,-249.470827,0.00019342,2]
[365160905,1749505850472,-256.357017,0.00019342,2]
[365160906,1749505850482,-151.0,0.00019342,2]
[365160907,1749505850491,-152.660103,0.00019342,2]
[365160908,1749505850501,-170.53758,0.00019342,2]
[365160909,1749505850510,-170.53758,0.00019342,2]
[365160910,1749505850520,-170.53758,0.00019342,2]
[365160911,1749505850529,-170.53758,0.00019342,2]
[365160912,1749505850538,-151.0,0.00019342,2]
[365160913,1749505850548,-151.0,0.00019342,2]
[365160914,1749505850557,-356.936612,0.00019342,2]
[365160915,1749505850567,-356.936612,0.00019342,2]
[365160916,1749505850576,-356.936612,0.00019342,2]
[365160917,1749505850585,-356.936612,0.00019342,2]
[365160918,1749505850595,-650.471266,0.00019342,2]
[365160919,1749505850605,-650.471266,0.00019342,2]
[365160920,1749505850614,-650.471266,0.00019342,2]
[365160921,1749505850624,-650.471266,0.00019342,2]
[365160922,1749505850633,-650.471266,0.00019342,2]
[365160923,1749505850643,-650.471266,0.00019342,2]
[365160924,1749505850652,-151.0,0.00019342,2]
[365160925,1749505850661,-151.0,0.00019342,2]
[365160926,1749505850670,-151.0,0.00019342,2]
[365160927,1749505850680,-202.368615,0.00019342,2]
[365160928,1749505850690,-202.368615,0.00019342,2]
[365160929,1749505850699,-202.368615,0.00019342,2]
[365160930,1749505850709,-151.0,0.00019342,2]
[365160931,1749505850719,-151.0,0.00019342,2]
[365160932,1749505850729,-151.0,0.00019342,2]
[365160933,1749505850738,-151.0,0.00019342,2]
[365160934,1749505850747,-234.151932,0.00019342,2]
[365160935,1749505850756,-151.0,0.00019342,2]
[365160936,1749505850766,-151.0,0.00019342,2]
[365160937,1749505850776,-151.0,0.00019342,2]
[365160938,1749505850786,-157.628526,0.00019342,2]
[365160939,1749505850795,-157.628526,0.00019342,2]
[365160940,1749505850804,-157.628526,0.00019342,2]
[365160941,1749505850814,-157.628526,0.00019342,2]
[365160942,1749505850823,-299.02,0.00019342,2]
[365160943,1749505850833,-299.02,0.00019342,2]
[365160944,1749505850843,-299.02,0.00019342,2]
[365160945,1749505850852,-299.02,0.00019342,2]
[365160946,1749505850862,-299.02,0.00019342,2]
[365160947,1749505850875,-299.02,0.00019342,2]
[365160948,1749505850884,-151.0,0.00019342,2]
[365160949,1749505850893,-151.0,0.00019342,2]
[365160950,1749505850903,-151.0,0.00019342,2]
[365160951,1749505850912,-160.353024,0.00019342,2]
[365160952,1749505850922,-151.0,0.00019342,2]
[365160953,1749505850931,-151.0,0.00019342,2]
[365160954,1749505850940,-151.0,0.00019342,2]
[365160955,1749505850951,-151.0,0.00019342,2]
[365160956,1749505850960,-151.0,0.00019342,2]
[365160957,1749505850969,-151.0,0.00019342,2]
[365160958,1749505850978,-151.0,0.00019342,2]
[365160959,1749505850988,-151.0,0.00019342,2]
[365160960,1749505850998,-151.0,0.00019342,2]
[365160961,1749505851007,-153.737883,0.00019342,2]
[365160962,1749505851016,-151.0,0.00019342,2]
[365160963,1749505851026,-151.0,0.00019342,2]
[365160964,1749505851035,-151.0,0.00019342,2]
[365160965,1749505851045,-171.650584,0.00019342,2]
[365160966,1749505851055,-188.18891,0.00019342,2]
[365160967,1749505851065,-188.18891,0.00019342,2]
[365160968,1749505851075,-188.18891,0.00019342,2]
[365160969,1749505851085,-188.18891,0.00019342,2]
[365160970,1749505851094,-188.18891,0.00019342,2]
[365160971,1749505851103,-188.18891,0.00019342,2]
[365160972,1749505851113,-151.0,0.00019342,2]
[365160973,1749505851122,-190.74508,0.00019342,2]
[365160974,1749505851132,-324.492742,0.00019342,2]
[365160975,1749505851142,-324.492742,0.00019342,2]
[365160976,1749505851152,-324.492742,0.00019342,2]
[365160977,1749505851162,-324.492742,0.00019342,2]
[365160978,1749505851172,-216.552278,0.00019342,2]
[365160979,1749505851182,-324.492742,0.00019342,2]
[365160980,1749505851192,-324.492742,0.00019342,2]
[365160981,1749505851202,-151.0,0.00019342,2]
[365160982,1749505851211,-151.0,0.00019342,2]
[365160983,1749505851220,-151.0,0.00019342,2]
[365160984,1749505851229,-214.452768,0.00019342,2]
[365160985,1749505851239,-214.452768,0.00019342,2]
[365160986,1749505851248,-214.452768,0.00019342,2]
[365160987,1749505851258,-214.452768,0.00019342,2]
[365160988,1749505851268,-395.755522,0.00019342,2]
[365160989,1749505851278,-395.755522,0.00019342,2]
[365160990,1749505851287,-395.755522,0.00019342,2]
[365160991,1749505851297,-151.0,0.00019342,2]
[365160992,1749505851305,-151.0,0.00019342,2]
[365160993,1749505851316,-151.0,0.00019342,2]
[365160994,1749505851326,-218.031287,0.00019342,2]
[365160995,1749505851337,-151.0,0.00019342,2]
[365160996,1749505851346,-151.0,0.00019342,2]
[365160997,1749505851355,-151.0,0.00019342,2]
[365160998,1749505851364,-151.0,0.00019342,2]
[365160999,1749505851374,-151.0,0.00019342,2]
[365161000,1749505851384,-151.0,0.00019342,2]
[365161001,1749505851392,-151.0,0.00019342,2]
[365161002,1749505851402,-151.0,0.00019342,2]
[365161003,1749505851412,-151.0,0.00019342,2]
[365161004,1749505851421,-151.0,0.00019342,2]
[365161005,1749505851431,-151.0,0.00019342,2]
[365161006,1749505851440,-151.0,0.00019342,2]
[365161007,1749505851450,-151.0,0.00019342,2]
[365161008,1749505851460,-151.0,0.00019342,2]
[365161009,1749505851469,-151.550716,0.00019342,2]
[365161010,1749505851479,-151.0,0.00019342,2]
[365161011,1749505851489,-151.0,0.00019342,2]
[365161012,1749505851498,-255.170628,0.00019342,2]
[365161013,1749505851507,-151.0,0.00019342,2]
[365161014,1749505851516,-151.0,0.00019342,2]
[365161015,1749505851526,-151.0,0.00019342,2]
[365161016,1749505851536,-151.0,0.00019342,2]
[365161017,1749505851546,-151.0,0.00019342,2]
[365161018,1749505851555,-151.0,0.00019342,2]
[365161019,1749505851566,-151.0,0.00019342,2]
[365161020,1749505851575,-151.0,0.00019342,2]
[365161021,1749505851585,-151.0,0.00019342,2]
[365161022,1749505851594,-166.946572,0.00019342,2]
[365161023,1749505851604,-151.0,0.00019342,2]
[365161024,1749505851614,-151.0,0.00019342,2]
[365161025,1749505851623,-189.222126,0.00019342,2]
[365161026,1749505851632,-151.0,0.00019342,2]
[365161027,1749505851642,-153.678997,0.00019342,2]
[365161028,1749505851652,-151.0,0.00019342,2]
[365161029,1749505851661,-272.152151,0.00019342,2]
[365161030,1749505851671,-151.0,0.00019342,2]
[365161031,1749505851680,-151.0,0.00019342,2]
[365161032,1749505851689,-151.0,0.00019342,2]
[365161033,1749505851698,-151.0,0.00019342,2]
[365161034,1749505851708,-152.645391,0.00019342,2]
[365161035,1749505851717,-151.0,0.00019342,2]
[365161036,1749505851726,-151.0,0.00019342,2]
[365161037,1749505851735,-151.0,0.00019342,2]
[365161038,1749505851745,-221.620575,0.00019342,2]
[365161039,1749505851754,-221.620575,0.00019342,2]
[365161040,1749505851763,-221.620575,0.00019342,2]
[365161041,1749505851773,-221.620575,0.00019342,2]
[365161042,1749505851782,-221.620575,0.00019342,2]
[365161043,1749505851791,-221.620575,0.00019342,2]
[365161044,1749505851800,-1253.136228,0.00019342,2]
[365161045,1749505851810,-1253.136228,0.00019342,2]
[365161046,1749505851821,-1253.136228,0.00019342,2]
[365161047,1749505851831,-1253.136228,0.00019342,2]
[365161048,1749505851841,-353.126917,0.00019342,2]
[365161049,1749505851851,-353.126917,0.00019342,2]
[365161050,1749505851860,-353.126917,0.00019342,2]
[365161051,1749505851872,-353.126917,0.00019342,2]
[365161052,1749505851883,-353.126917,0.00019342,2]
[365161053,1749505851892,-353.126917,0.00019342,2]
[365161054,1749505851902,-313.562792,0.00019342,2]
[365161055,1749505851912,-313.562792,0.00019342,2]
[365161056,1749505851923,-313.562792,0.00019342,2]
[365161057,1749505851932,-313.562792,0.00019342,2]
[365161058,1749505851941,-313.562792,0.00019342,2]
[365161059,1749505851951,-313.562792,0.00019342,2]
[365161060,1749505851960,-151.0,0.00019342,2]
[365161061,1749505851970,-151.0,0.00019342,2]
[365161062,1749505851979,-151.0,0.00019342,2]
[365161063,1749505851988,-151.0,0.00019342,2]
[365161064,1749505851998,-151.0,0.00019342,2]
[365161065,1749505852008,-151.0,0.00019342,2]
[365161066,1749505852018,-151.0,0.00019342,2]
[365161067,1749505852029,-151.0,0.00019342,2]
[365161068,1749505852039,-219.278864,0.00019342,2]
[365161069,1749505852048,-219.278864,0.00019342,2]
[365161070,1749505852058,-219.278864,0.00019342,2]
[365161071,1749505852069,-219.278864,0.00019342,2]
[365161072,1749505852078,-892.141764,0.00019342,2]
[365161073,1749505852088,-892.141764,0.00019342,2]
[365161074,1749505852098,-892.141764,0.00019342,2]
[365161075,1749505852108,-892.141764,0.00019342,2]
[365161076,1749505852117,-151.0,0.00019342,2]
[365161077,1749505852126,-151.0,0.00019342,2]
[365161078,1749505852135,-151.0,0.00019342,2]
[365161079,1749505852145,-151.0,0.00019342,2]
[365161080,1749505852155,-151.0,0.00019342,2]
[365161081,1749505852167,-151.0,0.00019342,2]
[365161082,1749505852176,-164.586808,0.00019342,2]
[365161083,1749505852186,-164.586808,0.00019342,2]
[365161084,1749505852196,-164.586808,0.00019342,2]
[365161085,1749505852205,-164.586808,0.00019342,2]
[365161086,1749505852215,-207.435276,0.00019342,2]
[365161087,1749505852225,-207.435276,0.00019342,2]
[365161088,1749505852235,-207.435276,0.00019342,2]
[365161089,1749505852245,-207.435276,0.00019342,2]
[365161090,1749505852254,-207.435276,0.00019342,2]
[365161091,1749505852264,-151.0,0.00019342,2]
[365161092,1749505852274,-207.435276,0.00019342,2]
[365161093,1749505852283,-151.0,0.00019342,2]
[365161094,1749505852293,-151.0,0.00019342,2]
[365161095,1749505852302,-151.0,0.00019342,2]
[365161096,1749505852311,-151.0,0.00019342,2]
[365161097,1749505852321,-151.0,0.00019342,2]
[365161098,1749505852331,-151.0,0.00019342,2]
[365161099,1749505852340,-151.0,0.00019342,2]
[365161100,1749505852350,-151.0,0.00019342,2]
[365161101,1749505852360,-271.418806,0.00019342,2]
[365161102,1749505852370,-271.418806,0.00019342,2]
[365161103,1749505852379,-271.418806,0.00019342,2]
[365161104,1749505852388,-271.418806,0.00019342,2]
[365161105,1749505852398,-271.418806,0.00019342,2]
[365161106,1749505852407,-271.418806,0.00019342,2]
[365161107,1749505852416,-314.25261,0.00019342,2]
[365161108,1749505852426,-314.25261,0.00019342,2]
[365161109,1749505852436,-151.0,0.00019342,2]
[365161110,1749505852446,-151.0,0.00019342,2]
[365161111,1749505852455,-314.25261,0.00019342,2]
[365161112,1749505852465,-314.25261,0.00019342,2]
[365161113,1749505852474,-295.718094,0.00019342,2]
[365161114,1749505852484,-303.804144,0.00019342,2]
[365161115,1749505852494,-303.804144,0.00019342,2]
[365161116,1749505852503,-303.804144,0.00019342,2]
[365161117,1749505852513,-303.804144,0.00019342,2]
[365161118,1749505852522,-151.0,0.00019342,2]
[365161119,1749505852532,-151.0,0.00019342,2]
[365161120,1749505852541,-160.804686,0.00019342,2]
[365161121,1749505852551,-160.804686,0.00019342,2]
[365161122,1749505852561,-160.804686,0.00019342,2]
[365161123,1749505852571,-160.804686,0.00019342,2]
[365161124,1749505852581,-274.445893,0.00019342,2]
[365161125,1749505852590,-230.138801,0.00019342,2]
[365161126,1749505852599,-151.0,0.00019342,2]
[365161127,1749505852608,-151.0,0.00019342,2]
[365161128,1749505852618,-480.0,0.00019342,2]
[365161129,1749505852627,-490.0,0.00019342,2]
[365161130,1749505852637,-480.0,0.00019342,2]
[365161131,1749505852647,-490.0,0.00019342,2]
[365161132,1749505852656,-490.0,0.00019342,2]
[365161133,1749505852666,-490.0,0.00019342,2]
[365161134,1749505852675,-490.0,0.00019342,2]
[365161135,1749505852684,-154.670046,0.00019342,2]
[365161136,1749505852694,-154.670046,0.00019342,2]
[365161137,1749505852704,-498.20378479,0.00019342,2]
[365161138,1749505852713,-490.0,0.00019342,2]
[365161139,1749505852723,-249.77816879,0.00019342,2]
[365161140,1749505852733,-313.54,0.00019342,2]
[365161141,1749505852745,-490.0,0.00019342,2]
[365161142,1749505852755,-470.0,0.00019342,2]
[365161143,1749505852764,-156.421558,0.00019342,2]
[365161144,1749505852774,-480.0,0.00019342,2]
[365161145,1749505852784,-490.0,0.00019342,2]
[365161146,1749505852794,-166.2727,0.00019342,2]
[365161147,1749505852803,-490.0,0.00019342,2]
[365161148,1749505852813,-166.2727,0.00019342,2]
[365161149,1749505852823,-390.77285441,0.00019342,2]
[365161150,1749505852832,-820.692982,0.00019342,2]
[365161151,1749505852842,-490.0,0.00019342,2]
[365161152,1749505852851,-820.692982,0.00019342,2]
[365161153,1749505852861,-490.0,0.00019342,2]
[365161154,1749505852873,-490.0,0.00019342,2]
[365161155,1749505852883,-490.0,0.00019342,2]
[365161156,1749505852892,-581.38099681,0.00019342,2]
[365161157,1749505852902,-451.35300369,0.00019342,2]
[365161158,1749505852911,-648.08,0.00019342,2]
[365161159,1749505852921,-480.0,0.00019342,2]
[365161160,1749505852931,-426.88628431,0.00019342,2]
[365161161,1749505852941,-480.0,0.00019342,2]
[365161162,1749505852951,-490.0,0.00019342,2]
[365161163,1749505852962,-490.0,0.00019342,2]
[365161164,1749505852971,-723.43,0.00019342,2]
[365161165,1749505852980,-490.0,0.00019342,2]
[365161166,1749505852990,-490.0,0.00019342,2]
[365161167,1749505852999,-168.83388433,0.00019342,2]
[365161168,1749505853009,-2014.858368,0.00019342,2]
[365161169,1749505853019,-2014.858368,0.00019342,2]
[365161170,1749505853028,-364.593156,0.00019342,2]
[365161171,1749505853038,-364.593156,0.00019342,2]
[365161172,1749505853047,-364.593156,0.00019342,2]
[365161173,1749505853056,-277.714419,0.00019342,2]
[365161174,1749505853066,-364.593156,0.00019342,2]
[365161175,1749505853075,-364.593156,0.00019342,2]
[365161176,1749505853085,-1461.507717,0.00019342,2]
[365161177,1749505853095,-364.593156,0.00019342,2]
[365161178,1749505853104,-277.714419,0.00019342,2]
[365161179,1749505853114,-1461.507717,0.00019342,2]
[365161180,1749505853123,-490.0,0.00019342,2]
[365161181,1749505853133,-490.0,0.00019342,2]
[365161182,1749505853143,-490.0,0.00019342,2]
[365161183,1749505853152,-490.0,0.00019342,2]
[365161184,1749505853162,-151.0,0.00019342,2]
[365161185,1749505853171,-490.0,0.00019342,2]
[365161186,1749505853181,-490.0,0.00019342,2]
[365161187,1749505853190,-151.0,0.00019342,2]
[365161188,1749505853200,-649.02,0.00019342,2]
[365161189,1749505853209,-490.0,0.00019342,2]
[365161190,1749505853219,-151.0,0.00019342,2]
[365161191,1749505853230,-1010.666632,0.00019342,2]
[365161192,1749505853239,-490.0,0.00019342,2]
[365161193,1749505853249,-1010.666632,0.00019342,2]
[365161194,1749505853258,-1010.666632,0.00019342,2]
[365161195,1749505853267,-490.0,0.00019342,2]
[365161196,1749505853277,-1010.666632,0.00019342,2]
[365161197,1749505853287,-1010.666632,0.00019342,2]
[365161198,1749505853296,-151.0,0.00019342,2]
[365161199,1749505853306,-1010.666632,0.00019342,2]
[365161200,1749505853317,-479.21221367,0.00019342,2]
[365161201,1749505853326,-490.0,0.00019342,2]
[365161202,1749505853336,-490.0,0.00019342,2]
[365161203,1749505853346,-151.0,0.00019342,2]
[365161204,1749505853356,-490.0,0.00019342,2]
[365161205,1749505853366,-151.0,0.00019342,2]
[365161206,1749505853376,-490.0,0.00019342,2]
[365161207,1749505853385,-215.072066,0.00019342,2]
[365161208,1749505853395,-490.0,0.00019342,2]
[365161209,1749505853405,-490.0,0.00019342,2]
[365161210,1749505853415,-490.0,0.00019342,2]
[365161211,1749505853425,-650.01,0.00019342,2]
[365161212,1749505853435,-490.0,0.00019342,2]
[365161213,1749505853445,-680.92,0.00019342,2]
[365161214,1749505853455,-151.0,0.00019342,2]
[365161215,1749505853465,-490.0,0.00019342,2]
[365161216,1749505853475,-185.416375,0.00019342,2]
[365161217,1749505853485,-482.13529597,0.00019342,2]
[365161218,1749505853495,-490.0,0.00019342,2]
[365161219,1749505853506,-185.416375,0.00019342,2]
[365161220,1749505853516,-544.47,0.00019342,2]
[365161221,1749505853526,-151.0,0.00019342,2]
[365161222,1749505853535,-490.0,0.00019342,2]
[365161223,1749505853546,-1112.76,0.00019342,2]
[365161224,1749505853556,-1616.79,0.00019342,2]
[365161225,1749505853566,-151.0,0.00019342,2]
[365161226,1749505853576,-151.0,0.00019342,2]
[365161227,1749505853587,-490.0,0.00019342,2]
[365161228,1749505853597,-527.77,0.00019342,2]
[365161229,1749505853606,-490.0,0.00019342,2]
[365161230,1749505853616,-151.0,0.00019342,2]
[365161231,1749505853626,-849.586945,0.00019342,2]
[365161232,1749505853636,-490.0,0.00019342,2]
[365161233,1749505853646,-539.54,0.00019342,2]
[365161234,1749505853656,-490.0,0.00019342,2]
[365161235,1749505853666,-849.586945,0.00019342,2]
[365161236,1749505853676,-490.0,0.00019342,2]
[365161237,1749505853687,-490.0,0.00019342,2]
[365161238,1749505853698,-1190.05,0.00019342,2]
[365161239,1749505853708,-727.01,0.00019342,2]
[365161240,1749505853718,-490.0,0.00019342,2]
[365161241,1749505853728,-560.8,0.00019342,2]
[365161242,1749505853738,-490.0,0.00019342,2]
[365161243,1749505853749,-612.19,0.00019342,2]
[365161244,1749505853759,-490.0,0.00019342,2]
[365161245,1749505853769,-152.870232,0.00019342,2]
[365161246,1749505853779,-862.54,0.00019342,2]
[365161247,1749505853790,-490.0,0.00019342,2]
[365161248,1749505853800,-644.48,0.00019342,2]
[365161249,1749505853811,-151.0,0.00019342,2]
[365161250,1749505853822,-490.0,0.00019342,2]
[365161251,1749505853832,-490.0,0.00019342,2]
[365161252,1749505853842,-593.15,0.00019342,2]
[365161253,1749505853852,-490.0,0.00019342,2]
[365161254,1749505853862,-812.69,0.00019342,2]
[365161255,1749505853874,-635.87,0.00019342,2]
[365161256,1749505853885,-151.0,0.00019342,2]
[365161257,1749505853895,-640.28,0.00019342,2]
[365161258,1749505853905,-490.0,0.00019342,2]
[365161259,1749505853915,-525.65,0.00019342,2]
[365161260,1749505853926,-151.0,0.00019342,2]
[365161261,1749505853937,-490.0,0.00019342,2]
[365161262,1749505853948,-490.0,0.00019342,2]
[365161263,1749505853959,-151.0,0.00019342,2]
[365161264,1749505853969,-490.0,0.00019342,2]
[365161265,1749505853979,-913.45,0.00019342,2]
[365161266,1749505853990,-490.0,0.00019342,2]
[365161267,1749505854001,-490.0,0.00019342,2]
[365161268,1749505854012,-669.78,0.00019342,2]
[365161269,1749505854023,-490.0,0.00019342,2]
[365161270,1749505854034,-490.0,0.00019342,2]
[365161271,1749505854045,-490.0,0.00019342,2]
[365161272,1749505854055,-1345.96,0.00019342,2]
[365161273,1749505854066,-151.0,0.00019342,2]
[365161274,1749505854076,-490.0,0.00019342,2]
[365161275,1749505854086,-490.0,0.00019342,2]
[365161276,1749505854097,-519.16,0.00019342,2]
[365161277,1749505854107,-490.0,0.00019342,2]
[365161278,1749505854118,-1075.45,0.00019342,2]
[365161279,1749505854128,-490.0,0.00019342,2]
[365161280,1749505854139,-490.0,0.00019342,2]
[365161281,1749505854149,-490.0,0.00019342,2]
[365161282,1749505854160,-490.0,0.00019342,2]
[365161283,1749505854171,-490.0,0.00019342,2]
[365161284,1749505854181,-490.0,0.00019342,2]
[365161285,1749505854191,-490.0,0.00019342,2]
[365161286,1749505854201,-490.0,0.00019342,2]
[365161287,1749505854211,-1452.8,0.00019342,2]
[365161288,1749505854222,-490.0,0.00019342,2]
[365161289,1749505854233,-490.0,0.00019342,2]
[365161290,1749505854243,-530.11,0.00019342,2]
[365161291,1749505854253,-179.74098,0.00019342,2]
[365161292,1749505854263,-179.74098,0.00019342,2]
[365161293,1749505854274,-490.0,0.00019342,2]
[365161294,1749505854284,-883.83,0.00019342,2]
[365161295,1749505854294,-1078.8,0.00019342,2]
[365161296,1749505854304,-569.66,0.00019342,2]
[365161297,1749505854314,-490.0,0.00019342,2]
[365161298,1749505854327,-490.0,0.00019342,2]
[365161299,1749505854336,-490.0,0.00019342,2]
[365161300,1749505854346,-609.31,0.00019342,2]
[365161301,1749505854356,-1035.11,0.00019342,2]
[365161302,1749505854366,-490.0,0.00019342,2]
[365161303,1749505854376,-480.0,0.00019342,2]
[365161304,1749505854386,-219.308609,0.00019342,2]
[365161305,1749505854396,-490.0,0.00019342,2]
[365161306,1749505854406,-480.0,0.00019342,2]
[365161307,1749505854416,-490.0,0.00019342,2]
[365161308,1749505854426,-219.308609,0.00019342,2]
[365161309,1749505854436,-490.0,0.00019342,2]
[365161310,1749505854447,-490.0,0.00019342,2]
[365161311,1749505854457,-886.66,0.00019342,2]
[365161312,1749505854467,-793.61,0.00019342,2]
[365161313,1749505854477,-321.01679462,0.00019342,2]
[365161314,1749505854488,-562.05,0.00019342,2]
[365161315,1749505854497,-1229.55,0.00019342,2]
[365161316,1749505854507,-151.0,0.00019342,2]
[365161317,1749505854517,-490.0,0.00019342,2]
[365161318,1749505854528,-490.0,0.00019342,2]
[365161319,1749505854538,-151.0,0.00019342,2]
[365161320,1749505854547,-490.0,0.00019342,2]
[365161321,1749505854558,-490.0,0.00019342,2]
[365161322,1749505854568,-642.35,0.00019342,2]
[365161323,1749505854578,-490.0,0.00019342,2]
[365161324,1749505854588,-490.0,0.00019342,2]
[365161325,1749505854598,-160.651567,0.00019342,2]
[365161326,1749505854607,-490.0,0.00019342,2]
[365161327,1749505854617,-845.5,0.00019342,2]
[365161328,1749505854627,-490.0,0.00019342,2]
[365161329,1749505854637,-490.0,0.00019342,2]
[365161330,1749505854648,-490.0,0.00019342,2]
[365161331,1749505854657,-1346.48,0.00019342,2]
[365161332,1749505854667,-490.0,0.00019342,2]
[365161333,1749505854677,-631.12,0.00019342,2]
[365161334,1749505854687,-490.0,0.00019342,2]
[365161335,1749505854697,-490.0,0.00019342,2]
[365161336,1749505854707,-490.0,0.00019342,2]
[365161337,1749505854717,-1081.67,0.00019342,2]
[365161338,1749505854727,-561.97581294,0.00019342,2]
[365161339,1749505854737,-151.0,0.00019342,2]
[365161340,1749505854747,-534.09,0.00019342,2]
[365161341,1749505854757,-151.0,0.00019342,2]
[365161342,1749505854767,-1268.45,0.00019342,2]
[365161343,1749505854777,-460.0,0.00019342,2]
[365161344,1749505854787,-675.92,0.00019342,2]
[365161345,1749505854797,-480.0,0.00019342,2]
[365161346,1749505854806,-514.79,0.00019342,2]
[365161347,1749505854818,-490.0,0.00019342,2]
[365161348,1749505854828,-943.36,0.00019342,2]
[365161349,1749505854838,-490.0,0.00019342,2]
[365161350,1749505854849,-1014.55,0.00019342,2]
[365161351,1749505854859,-1337.57,0.00019342,2]
[365161352,1749505854870,-1069.08,0.00019342,2]
[365161353,1749505854883,-156.610242,0.00019342,2]
[365161354,1749505854893,-490.0,0.00019342,2]
[365161355,1749505854903,-151.0,0.00019342,2]
[365161356,1749505854912,-751.43,0.00019342,2]
[365161357,1749505854922,-632.19,0.00019342,2]
[365161358,1749505854933,-1077.57,0.00019342,2]
[365161359,1749505854943,-521.7,0.00019342,2]
[365161360,1749505854956,-621.91,0.00019342,2]
[365161361,1749505854967,-490.0,0.00019342,2]
[365161362,1749505854978,-648.18,0.00019342,2]
[365161363,1749505854988,-713.89,0.00019342,2]
[365161364,1749505854999,-490.0,0.00019342,2]
[365161365,1749505855009,-447.65197885,0.00019342,2]
[365161366,1749505855019,-490.0,0.00019342,2]
[365161367,1749505855029,-554.11,0.00019342,2]
[365161368,1749505855039,-558.76,0.00019342,2]
[365161369,1749505855049,-1273.2,0.00019342,2]
[365161370,1749505855059,-151.0,0.00019342,2]
[365161371,1749505855069,-490.0,0.00019342,2]
[365161372,1749505855079,-783.19,0.00019342,2]
[365161373,1749505855090,-490.0,0.00019342,2]
[365161374,1749505855101,-1470.55,0.00019342,2]
[365161375,1749505855111,-801.8,0.00019342,2]
[365161376,1749505855122,-490.0,0.00019342,2]
[365161377,1749505855132,-490.0,0.00019342,2]
[365161378,1749505855142,-696.21,0.00019342,2]
[365161379,1749505855152,-490.0,0.00019342,2]
[365161380,1749505855162,-490.0,0.00019342,2]
[365161381,1749505855172,-490.0,0.00019342,2]
[365161382,1749505855182,-490.0,0.00019342,2]
[365161383,1749505855193,-170.11142663,0.00019342,2]
[365161384,1749505855204,-490.0,0.00019342,2]
[365161385,1749505855214,-490.0,0.00019342,2]
[365161386,1749505855224,-490.0,0.00019342,2]
[365161387,1749505855234,-490.0,0.00019342,2]
[365161388,1749505855244,-490.0,0.00019342,2]
[365161389,1749505855254,-490.0,0.00019342,2]
[365161390,1749505855264,-522.66,0.00019342,2]
[365161391,1749505855274,-313.59364812,0.00019342,2]
[365161392,1749505855284,-167.07555764,0.00019342,2]
[365161393,1749505855295,-672.45,0.00019342,2]
[365161394,1749505855305,-490.0,0.00019342,2]
[365161395,1749505855314,-490.0,0.00019342,2]
[365161396,1749505855326,-662.92,0.00019342,2]
[365161397,1749505855336,-490.0,0.00019342,2]
[365161398,1749505855346,-490.0,0.00019342,2]
[365161399,1749505855356,-583.22,0.00019342,2]
[365161400,1749505855366,-490.0,0.00019342,2]
[365161401,1749505855376,-250.0,0.00019342,2]
[365161402,1749505855386,-154.942484,0.00019342,2]